[Event "Titled Tuesday Blitz February 15 Early 2022"]
[White "Hakemi, Arman"]
[Black "Klinova, Masha"]
[WhiteFideId "22520805"]
[BlackFideId "2802015"]
[WhiteElo "2208"]
[BlackElo "2274"]
[Result "0-1"]
[Round "01"]
[TimeControl "180+1"]
[Date "2022.02.15"]
[WhiteClock "0:00:16"]
[BlackClock "0:00:20"]

1. e4 {[%clk 0:03:00]}  d6 {[%clk 0:02:59]} 2. d4 {[%clk 0:03:00]}  Nf6 {[%clk 0:02:59]} 3. Nc3 {[%clk 0:02:57]}  e5 {[%clk 0:02:58]} 4. dxe5 {[%clk 0:02:56]}  dxe5 {[%clk 0:02:58]} 5. Qxd8+ {[%clk 0:02:56]}  Kxd8 {[%clk 0:02:59]} 6. Bg5 {[%clk 0:02:57]}  Be7 {[%clk 0:02:58]} 7. O-O-O+ {[%clk 0:02:57]}  Nbd7 {[%clk 0:02:57]} 8. f4 {[%clk 0:02:56]}  h6 {[%clk 0:02:55]} 9. Bh4 {[%clk 0:02:55]}  exf4 {[%clk 0:02:55]} 10. Nf3 {[%clk 0:02:50]}  g5 {[%clk 0:02:53]} 11. Bf2 {[%clk 0:02:31]}  c6 {[%clk 0:02:50]} 12. Bc4 {[%clk 0:02:27]}  Ke8 {[%clk 0:02:43]} 13. h3 {[%clk 0:02:25]}  Nb6 {[%clk 0:02:39]} 14. Bb3 {[%clk 0:02:23]}  Be6 {[%clk 0:02:38]} 15. Rhe1 {[%clk 0:02:11]}  Rd8 {[%clk 0:02:35]} 16. Bd4 {[%clk 0:02:03]}  Rg8 {[%clk 0:02:26]} 17. Be5 {[%clk 0:01:52]}  Rxd1+ {[%clk 0:02:22]} 18. Rxd1 {[%clk 0:01:53]}  Nfd7 {[%clk 0:02:22]} 19. Bc7 {[%clk 0:01:51]}  Bc5 {[%clk 0:02:12]} 20. Bxe6 {[%clk 0:01:39]}  fxe6 {[%clk 0:02:11]} 21. a4 {[%clk 0:01:37]}  Ke7 {[%clk 0:02:04]} 22. a5 {[%clk 0:01:27]}  Nc4 {[%clk 0:01:55]} 23. b3 {[%clk 0:01:21]}  Ne3 {[%clk 0:01:51]} 24. Rd2 {[%clk 0:01:19]}  Rc8 {[%clk 0:01:49]} 25. Be5 {[%clk 0:01:18]}  Nxe5 {[%clk 0:01:40]} 26. Nxe5 {[%clk 0:01:19]}  Rc7 {[%clk 0:01:25]} 27. a6 {[%clk 0:01:14]}  b5 {[%clk 0:01:23]} 28. Re2 {[%clk 0:01:08]}  Bd4 {[%clk 0:01:19]} 29. Nxc6+ {[%clk 0:01:05]}  Rxc6 {[%clk 0:01:18]} 30. Nxb5 {[%clk 0:01:06]}  Bb6 {[%clk 0:01:13]} 31. c4 {[%clk 0:01:05]}  Bc5 {[%clk 0:01:07]} 32. Kb2 {[%clk 0:01:03]}  Rxa6 {[%clk 0:01:05]} 33. Kc3 {[%clk 0:01:02]}  e5 {[%clk 0:00:57]} 34. Rd2 {[%clk 0:00:51]}  Ra1 {[%clk 0:00:55]} 35. b4 {[%clk 0:00:48]}  Rc1+ {[%clk 0:00:28]} 36. Kb3 {[%clk 0:00:37]}  Rb1+ {[%clk 0:00:23]} 37. Ka2 {[%clk 0:00:37]}  Rxb4 {[%clk 0:00:23]} 38. Rd3 {[%clk 0:00:33]}  Rxc4 {[%clk 0:00:23]} 39. Nc7 {[%clk 0:00:29]}  Rc2+ {[%clk 0:00:22]} 40. Kb3 {[%clk 0:00:29]}  Rxg2 {[%clk 0:00:23]} 41. Ka4 {[%clk 0:00:27]}  Bb6 {[%clk 0:00:22]} 42. Na6 {[%clk 0:00:27]}  Rg3 {[%clk 0:00:22]} 43. Kb5 {[%clk 0:00:24]}  Nc2 {[%clk 0:00:22]} 44. Rd1 {[%clk 0:00:22]}  Nd4+ {[%clk 0:00:22]} 45. Kc4 {[%clk 0:00:22]}  Rxh3 {[%clk 0:00:20]} 46. Kd5 {[%clk 0:00:23]}  Ra3 {[%clk 0:00:21]} 47. Nb8 {[%clk 0:00:22]}  Ne2 {[%clk 0:00:21]} 48. Nc6+ {[%clk 0:00:22]}  Kf6 {[%clk 0:00:21]} 49. Kd6 {[%clk 0:00:20]}  Nc3 {[%clk 0:00:21]} 50. Re1 {[%clk 0:00:19]}  Ra4 {[%clk 0:00:21]} 51. Nxe5 {[%clk 0:00:15]}  Nxe4+ {[%clk 0:00:21]} 52. Kd5 {[%clk 0:00:16]}  Ra5+ {[%clk 0:00:20]} 0-1


[Site "https://www.chess.com"]

[Event "Titled Tuesday Blitz February 15 Early 2022"]
[White "Hansen, Eric"]
[Black "Przybylski, Wojciech"]
[WhiteFideId "2606771"]
[BlackFideId "1117599"]
[WhiteElo "2568"]
[BlackElo "2133"]
[Result "1-0"]
[Round "01"]
[TimeControl "180+1"]
[Date "2022.02.15"]
[WhiteClock "0:00:04"]
[BlackClock "0:00:04"]

1. e4 {[%clk 0:02:54]}  e5 {[%clk 0:02:59]} 2. Nf3 {[%clk 0:02:52]}  Nc6 {[%clk 0:02:59]} 3. Bb5 {[%clk 0:02:52]}  Nf6 {[%clk 0:02:58]} 4. d3 {[%clk 0:02:32]}  Bc5 {[%clk 0:02:58]} 5. c3 {[%clk 0:02:30]}  O-O {[%clk 0:02:57]} 6. O-O {[%clk 0:02:27]}  Re8 {[%clk 0:02:55]} 7. Re1 {[%clk 0:02:18]}  h6 {[%clk 0:02:53]} 8. h3 {[%clk 0:02:18]}  a6 {[%clk 0:02:52]} 9. Ba4 {[%clk 0:02:13]}  b5 {[%clk 0:02:51]} 10. Bb3 {[%clk 0:02:13]}  d5 {[%clk 0:02:50]} 11. exd5 {[%clk 0:02:13]}  Nxd5 {[%clk 0:02:51]} 12. d4 {[%clk 0:02:13]}  Bb6 {[%clk 0:02:15]} 13. dxe5 {[%clk 0:02:02]}  Be6 {[%clk 0:02:14]} 14. Bc2 {[%clk 0:02:00]}  Nde7 {[%clk 0:01:54]} 15. Nbd2 {[%clk 0:01:34]}  Ng6 {[%clk 0:01:46]} 16. a4 {[%clk 0:01:20]}  Bd5 {[%clk 0:01:42]} 17. axb5 {[%clk 0:01:20]}  axb5 {[%clk 0:01:41]} 18. Rxa8 {[%clk 0:01:20]}  Qxa8 {[%clk 0:01:42]} 19. Bxg6 {[%clk 0:00:57]}  fxg6 {[%clk 0:01:41]} 20. Qc2 {[%clk 0:00:58]}  g5 {[%clk 0:01:24]} 21. Ne4 {[%clk 0:00:57]}  Bf7 {[%clk 0:00:48]} 22. Nexg5 {[%clk 0:00:24]}  hxg5 {[%clk 0:00:44]} 23. Nxg5 {[%clk 0:00:25]}  Nxe5 {[%clk 0:00:22]} 24. Qh7+ {[%clk 0:00:23]}  Kf8 {[%clk 0:00:22]} 25. Bf4 {[%clk 0:00:22]}  Ng6 {[%clk 0:00:15]} 26. Be3 {[%clk 0:00:18]}  Bxe3 {[%clk 0:00:15]} 27. fxe3 {[%clk 0:00:17]}  Qd5 {[%clk 0:00:15]} 28. Nxf7 {[%clk 0:00:14]}  Kxf7 {[%clk 0:00:15]} 29. Rf1+ {[%clk 0:00:12]}  Ke7 {[%clk 0:00:14]} 30. Qxg6 {[%clk 0:00:09]}  Qe5 {[%clk 0:00:14]} 31. Rf7+ {[%clk 0:00:05]}  Kd8 {[%clk 0:00:15]} 32. Rf3 {[%clk 0:00:05]}  Re6 {[%clk 0:00:13]} 33. Qg4 {[%clk 0:00:05]}  Ke7 {[%clk 0:00:12]} 34. Qd4 {[%clk 0:00:05]}  Qxd4 {[%clk 0:00:12]} 35. exd4 {[%clk 0:00:05]}  Re2 {[%clk 0:00:11]} 36. Rf2 {[%clk 0:00:05]}  Re1+ {[%clk 0:00:12]} 37. Kh2 {[%clk 0:00:06]}  Re3 {[%clk 0:00:12]} 38. h4 {[%clk 0:00:05]}  Ke6 {[%clk 0:00:11]} 39. g3 {[%clk 0:00:06]}  b4 {[%clk 0:00:09]} 40. cxb4 {[%clk 0:00:04]}  Rb3 {[%clk 0:00:09]} 41. Rc2 {[%clk 0:00:04]}  Rxb4 {[%clk 0:00:08]} 42. Rxc7 {[%clk 0:00:04]}  Kf6 {[%clk 0:00:06]} 43. Rc6+ {[%clk 0:00:03]}  Kf7 {[%clk 0:00:06]} 44. Rc2 {[%clk 0:00:04]}  Rxd4 {[%clk 0:00:06]} 45. b3 {[%clk 0:00:04]}  Rb4 {[%clk 0:00:06]} 46. Rb2 {[%clk 0:00:05]}  g5 {[%clk 0:00:06]} 47. hxg5 {[%clk 0:00:03]}  Kg6 {[%clk 0:00:07]} 48. Kg2 {[%clk 0:00:04]}  Kxg5 {[%clk 0:00:07]} 49. Kf3 {[%clk 0:00:04]}  Kf5 {[%clk 0:00:07]} 50. Ke3 {[%clk 0:00:05]}  Ke5 {[%clk 0:00:08]} 51. Kd3 {[%clk 0:00:05]}  Kd5 {[%clk 0:00:08]} 52. Kc3 {[%clk 0:00:05]}  Rg4 {[%clk 0:00:08]} 53. Rg2 {[%clk 0:00:06]}  Kc5 {[%clk 0:00:09]} 54. Kd3 {[%clk 0:00:06]}  Kd5 {[%clk 0:00:07]} 55. Rg1 {[%clk 0:00:05]}  Rb4 {[%clk 0:00:07]} 56. Kc3 {[%clk 0:00:05]}  Rg4 {[%clk 0:00:06]} 57. b4 {[%clk 0:00:05]}  Rc4+ {[%clk 0:00:06]} 58. Kb3 {[%clk 0:00:05]}  Rg4 {[%clk 0:00:07]} 59. Ka4 {[%clk 0:00:06]}  Kc6 {[%clk 0:00:07]} 60. Ka5 {[%clk 0:00:06]}  Kb7 {[%clk 0:00:04]} 61. Kb5 {[%clk 0:00:05]}  Rg5+ {[%clk 0:00:05]} 62. Kc4 {[%clk 0:00:06]}  Kc6 {[%clk 0:00:05]} 63. g4 {[%clk 0:00:05]}  Kd6 {[%clk 0:00:04]} 64. b5 {[%clk 0:00:05]}  Rc5+ {[%clk 0:00:04]} 65. Kb4 {[%clk 0:00:05]}  Rg5 {[%clk 0:00:04]} 66. Ka5 {[%clk 0:00:05]}  Kc7 {[%clk 0:00:05]} 67. Ka6 {[%clk 0:00:06]}  Kb8 {[%clk 0:00:03]} 68. Kb6 {[%clk 0:00:06]}  Rg6+ {[%clk 0:00:03]} 69. Kc5 {[%clk 0:00:06]}  Kc7 {[%clk 0:00:04]} 70. g5 {[%clk 0:00:06]}  Kb7 {[%clk 0:00:04]} 71. Kd5 {[%clk 0:00:04]}  Kc7 {[%clk 0:00:04]} 72. Ke5 {[%clk 0:00:04]}  Rb6 {[%clk 0:00:04]} 73. g6 {[%clk 0:00:04]}  Rxb5+ {[%clk 0:00:04]} 74. Ke6 {[%clk 0:00:05]}  Rb6+ {[%clk 0:00:04]} 75. Ke7 {[%clk 0:00:05]}  Rb1 {[%clk 0:00:04]} 76. Rxb1 {[%clk 0:00:04]} 1-0


[Site "https://www.chess.com"]

[Event "Titled Tuesday Blitz February 15 Early 2022"]
[White "Dronavalli, Harika"]
[Black "Todorovic, Bojan"]
[WhiteFideId "5015197"]
[BlackFideId "917087"]
[WhiteElo "2382"]
[BlackElo "2266"]
[Result "1-0"]
[Round "01"]
[TimeControl "180+1"]
[Date "2022.02.15"]
[WhiteClock "0:01:34"]
[BlackClock "0:00:14"]

1. d4 {[%clk 0:03:00]}  Nf6 {[%clk 0:02:58]} 2. c4 {[%clk 0:02:59]}  g6 {[%clk 0:02:57]} 3. g3 {[%clk 0:02:57]}  Bg7 {[%clk 0:02:56]} 4. Bg2 {[%clk 0:02:57]}  O-O {[%clk 0:02:56]} 5. Nc3 {[%clk 0:02:57]}  d6 {[%clk 0:02:55]} 6. Nf3 {[%clk 0:02:57]}  c6 {[%clk 0:02:55]} 7. O-O {[%clk 0:02:56]}  Qa5 {[%clk 0:02:55]} 8. e4 {[%clk 0:02:55]}  Bg4 {[%clk 0:02:48]} 9. h3 {[%clk 0:02:55]}  Bxf3 {[%clk 0:02:47]} 10. Bxf3 {[%clk 0:02:54]}  Nbd7 {[%clk 0:02:39]} 11. Be3 {[%clk 0:02:48]}  Qb4 {[%clk 0:02:30]} 12. Qe2 {[%clk 0:02:43]}  e5 {[%clk 0:02:21]} 13. d5 {[%clk 0:02:32]}  cxd5 {[%clk 0:02:06]} 14. cxd5 {[%clk 0:02:32]}  a6 {[%clk 0:02:06]} 15. Rac1 {[%clk 0:02:31]}  Rac8 {[%clk 0:02:00]} 16. a3 {[%clk 0:02:29]}  Qa5 {[%clk 0:02:00]} 17. Rc2 {[%clk 0:02:17]}  h5 {[%clk 0:01:54]} 18. h4 {[%clk 0:02:10]}  Kh7 {[%clk 0:01:49]} 19. Rfc1 {[%clk 0:02:09]}  Ng8 {[%clk 0:01:45]} 20. Nb1 {[%clk 0:02:04]}  Rxc2 {[%clk 0:01:43]} 21. Rxc2 {[%clk 0:02:03]}  Bh6 {[%clk 0:01:41]} 22. b4 {[%clk 0:02:02]}  Qd8 {[%clk 0:01:37]} 23. Nd2 {[%clk 0:01:59]}  Bxe3 {[%clk 0:01:34]} 24. Qxe3 {[%clk 0:01:59]}  Ne7 {[%clk 0:01:21]} 25. Nc4 {[%clk 0:01:56]}  Qb8 {[%clk 0:01:14]} 26. Nb6 {[%clk 0:01:50]}  Nxb6 {[%clk 0:01:03]} 27. Qxb6 {[%clk 0:01:51]}  Rc8 {[%clk 0:00:56]} 28. Rxc8 {[%clk 0:01:50]}  Nxc8 {[%clk 0:00:53]} 29. Qd8 {[%clk 0:01:50]}  b5 {[%clk 0:00:47]} 30. g4 {[%clk 0:01:50]}  Qb7 {[%clk 0:00:33]} 31. gxh5 {[%clk 0:01:50]}  gxh5 {[%clk 0:00:32]} 32. Bxh5 {[%clk 0:01:47]}  Kg7 {[%clk 0:00:28]} 33. Qg5+ {[%clk 0:01:41]}  Kf8 {[%clk 0:00:27]} 34. Bg4 {[%clk 0:01:40]}  Ne7 {[%clk 0:00:25]} 35. Qh6+ {[%clk 0:01:40]}  Kg8 {[%clk 0:00:22]} 36. Qxd6 {[%clk 0:01:40]}  Ng6 {[%clk 0:00:20]} 37. Bf5 {[%clk 0:01:35]}  Qc8 {[%clk 0:00:14]} 38. Bxc8 {[%clk 0:01:34]} 1-0


[Site "https://www.chess.com"]

[Event "Titled Tuesday Blitz February 15 Early 2022"]
[White "Havlik, Jan"]
[Black "Qashashvili, Alexandre"]
[WhiteFideId "319783"]
[BlackFideId "13600842"]
[WhiteElo "2372"]
[BlackElo "2316"]
[Result "1-0"]
[Round "01"]
[TimeControl "180+1"]
[Date "2022.02.15"]
[WhiteClock "0:01:39"]
[BlackClock "0:00:01"]

1. e4 {[%clk 0:02:57]}  d5 {[%clk 0:03:00]} 2. exd5 {[%clk 0:02:56]}  Nf6 {[%clk 0:02:58]} 3. d4 {[%clk 0:02:56]}  Nxd5 {[%clk 0:02:55]} 4. c4 {[%clk 0:02:56]}  Nf6 {[%clk 0:02:52]} 5. Nf3 {[%clk 0:02:57]}  Bf5 {[%clk 0:02:50]} 6. Nc3 {[%clk 0:02:51]}  c6 {[%clk 0:02:50]} 7. Bg5 {[%clk 0:02:49]}  e6 {[%clk 0:02:49]} 8. c5 {[%clk 0:02:49]}  Be7 {[%clk 0:02:49]} 9. Bc4 {[%clk 0:02:49]}  Nbd7 {[%clk 0:02:46]} 10. O-O {[%clk 0:02:49]}  O-O {[%clk 0:02:43]} 11. Re1 {[%clk 0:02:48]}  h6 {[%clk 0:02:39]} 12. Bh4 {[%clk 0:02:48]}  Re8 {[%clk 0:02:37]} 13. h3 {[%clk 0:02:48]}  Nd5 {[%clk 0:02:36]} 14. Bg3 {[%clk 0:02:46]}  N7f6 {[%clk 0:02:32]} 15. Qe2 {[%clk 0:02:43]}  b5 {[%clk 0:02:27]} 16. Bd3 {[%clk 0:02:32]}  Bxd3 {[%clk 0:02:25]} 17. Qxd3 {[%clk 0:02:32]}  b4 {[%clk 0:02:15]} 18. Ne4 {[%clk 0:02:32]}  Nxe4 {[%clk 0:02:14]} 19. Qxe4 {[%clk 0:02:33]}  Bf6 {[%clk 0:02:12]} 20. Rad1 {[%clk 0:02:32]}  a5 {[%clk 0:02:09]} 21. Be5 {[%clk 0:02:30]}  Bxe5 {[%clk 0:02:08]} 22. Nxe5 {[%clk 0:02:30]}  Qc7 {[%clk 0:02:05]} 23. Nc4 {[%clk 0:02:28]}  a4 {[%clk 0:02:01]} 24. Qe5 {[%clk 0:02:28]}  Qxe5 {[%clk 0:01:58]} 25. dxe5 {[%clk 0:02:28]}  a3 {[%clk 0:01:57]} 26. bxa3 {[%clk 0:02:28]}  bxa3 {[%clk 0:01:56]} 27. Rd3 {[%clk 0:02:27]}  Nb4 {[%clk 0:01:52]} 28. Rxa3 {[%clk 0:02:25]}  Rxa3 {[%clk 0:01:49]} 29. Nxa3 {[%clk 0:02:25]}  Nxa2 {[%clk 0:01:49]} 30. Nc4 {[%clk 0:02:25]}  Nb4 {[%clk 0:01:45]} 31. Nd6 {[%clk 0:02:24]}  Ra8 {[%clk 0:01:39]} 32. Rb1 {[%clk 0:02:23]}  Nd3 {[%clk 0:01:38]} 33. Rb6 {[%clk 0:02:21]}  Nxe5 {[%clk 0:01:30]} 34. f4 {[%clk 0:02:20]}  Nd3 {[%clk 0:01:29]} 35. Rxc6 {[%clk 0:02:20]}  Nxf4 {[%clk 0:01:17]} 36. Rc7 {[%clk 0:02:16]}  Ra1+ {[%clk 0:01:07]} 37. Kf2 {[%clk 0:02:15]}  Ra2+ {[%clk 0:01:03]} 38. Kf3 {[%clk 0:02:16]}  Nd3 {[%clk 0:00:57]} 39. c6 {[%clk 0:02:10]}  Rc2 {[%clk 0:00:53]} 40. Rc8+ {[%clk 0:02:09]}  Kh7 {[%clk 0:00:51]} 41. c7 {[%clk 0:02:09]}  Ne5+ {[%clk 0:00:41]} 42. Ke4 {[%clk 0:02:08]}  Nd7 {[%clk 0:00:34]} 43. Nxf7 {[%clk 0:01:50]}  Nb6 {[%clk 0:00:26]} 44. Rh8+ {[%clk 0:01:49]}  Kg6 {[%clk 0:00:26]} 45. Ne5+ {[%clk 0:01:49]}  Kg5 {[%clk 0:00:20]} 46. Rb8 {[%clk 0:01:48]}  Rxc7 {[%clk 0:00:15]} 47. Rxb6 {[%clk 0:01:47]}  Rc2 {[%clk 0:00:15]} 48. g3 {[%clk 0:01:46]}  Re2+ {[%clk 0:00:12]} 49. Kd4 {[%clk 0:01:45]}  Rd2+ {[%clk 0:00:07]} 50. Ke3 {[%clk 0:01:45]}  Rd5 {[%clk 0:00:06]} 51. Nf3+ {[%clk 0:01:43]}  Kf6 {[%clk 0:00:05]} 52. Nd4 {[%clk 0:01:42]}  Re5+ {[%clk 0:00:04]} 53. Kf4 {[%clk 0:01:42]}  g5+ {[%clk 0:00:04]} 54. Kf3 {[%clk 0:01:41]}  h5 {[%clk 0:00:02]} 55. g4 {[%clk 0:01:41]}  hxg4+ {[%clk 0:00:01]} 56. hxg4 {[%clk 0:01:41]}  Re1 {[%clk 0:00:01]} 57. Ne2 {[%clk 0:01:39]} 1-0


[Site "https://www.chess.com"]

[Event "Titled Tuesday Blitz February 15 Early 2022"]
[White "Hirneise, Jens"]
[Black "Nogerbek, Kazybek"]
[WhiteFideId "24614734"]
[BlackFideId "13710427"]
[WhiteElo "2323"]
[BlackElo "2478"]
[Result "0-1"]
[Round "01"]
[TimeControl "180+1"]
[Date "2022.02.15"]
[WhiteClock "0:00:18"]
[BlackClock "0:00:10"]

1. d4 {[%clk 0:02:59]}  Nf6 {[%clk 0:01:32]} 2. Nf3 {[%clk 0:03:00]}  d5 {[%clk 0:01:32]} 3. Bf4 {[%clk 0:02:59]}  Bf5 {[%clk 0:01:30]} 4. e3 {[%clk 0:02:58]}  e6 {[%clk 0:01:31]} 5. Nbd2 {[%clk 0:02:56]}  Bd6 {[%clk 0:01:31]} 6. Bg3 {[%clk 0:02:56]}  O-O {[%clk 0:01:30]} 7. Bd3 {[%clk 0:02:56]}  Bg6 {[%clk 0:01:30]} 8. O-O {[%clk 0:02:55]}  Qe7 {[%clk 0:01:31]} 9. Qe2 {[%clk 0:02:55]}  c5 {[%clk 0:01:31]} 10. dxc5 {[%clk 0:02:46]}  Bxg3 {[%clk 0:01:30]} 11. hxg3 {[%clk 0:02:45]}  Qxc5 {[%clk 0:01:30]} 12. c4 {[%clk 0:02:44]}  Nc6 {[%clk 0:01:26]} 13. Rfc1 {[%clk 0:02:41]}  Rfd8 {[%clk 0:01:17]} 14. Bxg6 {[%clk 0:02:35]}  hxg6 {[%clk 0:01:18]} 15. a3 {[%clk 0:02:32]}  d4 {[%clk 0:01:16]} 16. Nb3 {[%clk 0:02:31]}  Qh5 {[%clk 0:00:53]} 17. exd4 {[%clk 0:02:15]}  Ng4 {[%clk 0:00:50]} 18. Rd1 {[%clk 0:02:10]}  Rd6 {[%clk 0:00:45]} 19. Rd3 {[%clk 0:01:53]}  Rad8 {[%clk 0:00:44]} 20. Rad1 {[%clk 0:01:53]}  b6 {[%clk 0:00:41]} 21. c5 {[%clk 0:01:30]}  Rd5 {[%clk 0:00:36]} 22. cxb6 {[%clk 0:01:28]}  axb6 {[%clk 0:00:36]} 23. Qe4 {[%clk 0:01:21]}  Ne7 {[%clk 0:00:32]} 24. Nbd2 {[%clk 0:01:15]}  Nf5 {[%clk 0:00:29]} 25. Nf1 {[%clk 0:01:13]}  R5d6 {[%clk 0:00:15]} 26. a4 {[%clk 0:01:06]}  f6 {[%clk 0:00:15]} 27. b4 {[%clk 0:01:04]}  Kf7 {[%clk 0:00:13]} 28. N3h2 {[%clk 0:00:42]}  Nxh2 {[%clk 0:00:10]} 29. Nxh2 {[%clk 0:00:42]}  Rh8 {[%clk 0:00:11]} 30. Qb7+ {[%clk 0:00:39]}  Ke8 {[%clk 0:00:10]} 31. Qa8+ {[%clk 0:00:36]}  Ke7 {[%clk 0:00:10]} 32. Qb7+ {[%clk 0:00:23]}  Rd7 {[%clk 0:00:09]} 33. Qxb6 {[%clk 0:00:23]}  Qxh2+ {[%clk 0:00:09]} 34. Kf1 {[%clk 0:00:24]}  Qh1+ {[%clk 0:00:10]} 35. Ke2 {[%clk 0:00:25]}  Qxg2 {[%clk 0:00:11]} 36. a5 {[%clk 0:00:24]}  Qe4+ {[%clk 0:00:10]} 37. Kd2 {[%clk 0:00:22]}  Rh2 {[%clk 0:00:11]} 38. Rf1 {[%clk 0:00:21]}  Nxd4 {[%clk 0:00:10]} 39. Qc5+ {[%clk 0:00:20]}  Kf7 {[%clk 0:00:10]} 40. Kc3 {[%clk 0:00:18]}  Ne2+ {[%clk 0:00:10]} 0-1


[Site "https://www.chess.com"]

[Event "Titled Tuesday Blitz February 15 Early 2022"]
[White "Indjic, Aleksandar"]
[Black "Martin Carmona, Gaston Manuel"]
[WhiteFideId "911925"]
[BlackFideId "22284567"]
[WhiteElo "2616"]
[BlackElo "2161"]
[Result "1-0"]
[Round "01"]
[TimeControl "180+1"]
[Date "2022.02.15"]
[WhiteClock "0:01:20"]
[BlackClock "0:00:21"]

1. e4 {[%clk 0:03:00]}  c5 {[%clk 0:02:58]} 2. Nc3 {[%clk 0:02:59]}  e6 {[%clk 0:02:42]} 3. Nge2 {[%clk 0:02:58]}  Nc6 {[%clk 0:02:39]} 4. g3 {[%clk 0:02:54]}  d5 {[%clk 0:02:39]} 5. exd5 {[%clk 0:02:54]}  exd5 {[%clk 0:02:38]} 6. d4 {[%clk 0:02:54]}  cxd4 {[%clk 0:02:36]} 7. Nxd4 {[%clk 0:02:50]}  Nf6 {[%clk 0:02:37]} 8. Bg2 {[%clk 0:02:48]}  Bg4 {[%clk 0:02:35]} 9. Qd3 {[%clk 0:02:46]}  Bc5 {[%clk 0:02:33]} 10. Be3 {[%clk 0:02:39]}  Qb6 {[%clk 0:02:22]} 11. Nxc6 {[%clk 0:02:37]}  Bxe3 {[%clk 0:02:09]} 12. O-O {[%clk 0:02:26]}  bxc6 {[%clk 0:01:57]} 13. fxe3 {[%clk 0:02:23]}  O-O {[%clk 0:01:53]} 14. Qd4 {[%clk 0:02:17]}  Qxd4 {[%clk 0:01:12]} 15. exd4 {[%clk 0:02:16]}  Rab8 {[%clk 0:01:13]} 16. b3 {[%clk 0:02:10]}  Rfe8 {[%clk 0:01:13]} 17. Rae1 {[%clk 0:02:01]}  Bh5 {[%clk 0:01:13]} 18. Na4 {[%clk 0:01:45]}  Bg6 {[%clk 0:01:10]} 19. c3 {[%clk 0:01:45]}  Bd3 {[%clk 0:01:04]} 20. Rxe8+ {[%clk 0:01:44]}  Rxe8 {[%clk 0:01:05]} 21. Rd1 {[%clk 0:01:44]}  Bb5 {[%clk 0:01:02]} 22. Nc5 {[%clk 0:01:42]}  Re2 {[%clk 0:01:00]} 23. a4 {[%clk 0:01:38]}  Ng4 {[%clk 0:00:56]} 24. axb5 {[%clk 0:01:23]}  cxb5 {[%clk 0:00:21]} 25. Bf3 {[%clk 0:01:20]} 1-0


[Site "https://www.chess.com"]

[Event "Titled Tuesday Blitz February 15 Early 2022"]
[White "Jain Kashish Manoj"]
[Black "Varney, Zoe"]
[WhiteFideId "35081098"]
[BlackFideId "436135"]
[WhiteElo "1681"]
[BlackElo "1808"]
[Result "1-0"]
[Round "01"]
[TimeControl "180+1"]
[Date "2022.02.15"]
[WhiteClock "0:00:18"]
[BlackClock "0:00:02"]

1. e4 {[%clk 0:02:54]}  e5 {[%clk 0:02:58]} 2. Nf3 {[%clk 0:02:52]}  Nc6 {[%clk 0:02:58]} 3. Bb5 {[%clk 0:02:50]}  a6 {[%clk 0:02:56]} 4. Bxc6 {[%clk 0:02:47]}  dxc6 {[%clk 0:02:56]} 5. O-O {[%clk 0:02:48]}  Bd6 {[%clk 0:02:55]} 6. Na3 {[%clk 0:02:34]}  Be6 {[%clk 0:02:52]} 7. d3 {[%clk 0:02:27]}  Ne7 {[%clk 0:02:47]} 8. Ng5 {[%clk 0:02:20]}  Bd7 {[%clk 0:02:14]} 9. Nc4 {[%clk 0:02:07]}  f6 {[%clk 0:02:14]} 10. Nh3 {[%clk 0:01:40]}  Bxh3 {[%clk 0:02:09]} 11. Qh5+ {[%clk 0:01:37]}  g6 {[%clk 0:01:55]} 12. Qxh3 {[%clk 0:01:38]}  Qd7 {[%clk 0:01:56]} 13. Qxd7+ {[%clk 0:01:29]}  Kxd7 {[%clk 0:01:56]} 14. f4 {[%clk 0:01:30]}  Bc5+ {[%clk 0:01:45]} 15. Kh1 {[%clk 0:01:21]}  b5 {[%clk 0:01:43]} 16. Be3 {[%clk 0:01:11]}  Bxe3 {[%clk 0:01:19]} 17. Nxe3 {[%clk 0:01:12]}  exf4 {[%clk 0:01:18]} 18. Rxf4 {[%clk 0:01:11]}  Rhf8 {[%clk 0:01:15]} 19. Raf1 {[%clk 0:01:11]}  Ke6 {[%clk 0:01:13]} 20. Ng4 {[%clk 0:00:44]}  f5 {[%clk 0:01:09]} 21. exf5+ {[%clk 0:00:43]}  Nxf5 {[%clk 0:00:59]} 22. Re1+ {[%clk 0:00:42]}  Kd6 {[%clk 0:00:52]} 23. g3 {[%clk 0:00:35]}  Rae8 {[%clk 0:00:44]} 24. Rfe4 {[%clk 0:00:33]}  Rxe4 {[%clk 0:00:39]} 25. dxe4 {[%clk 0:00:34]}  Nd4 {[%clk 0:00:21]} 26. c3 {[%clk 0:00:34]}  Ne6 {[%clk 0:00:18]} 27. Kg2 {[%clk 0:00:30]}  h5 {[%clk 0:00:18]} 28. Rd1+ {[%clk 0:00:30]}  Ke7 {[%clk 0:00:15]} 29. Ne5 {[%clk 0:00:31]}  g5 {[%clk 0:00:10]} 30. Ng6+ {[%clk 0:00:30]}  Kf7 {[%clk 0:00:09]} 31. Nxf8 {[%clk 0:00:31]}  Kxf8 {[%clk 0:00:09]} 32. Rd7 {[%clk 0:00:28]}  c5 {[%clk 0:00:08]} 33. Rh7 {[%clk 0:00:27]}  h4 {[%clk 0:00:06]} 34. gxh4 {[%clk 0:00:27]}  gxh4 {[%clk 0:00:07]} 35. Rxh4 {[%clk 0:00:26]}  b4 {[%clk 0:00:07]} 36. cxb4 {[%clk 0:00:25]}  cxb4 {[%clk 0:00:08]} 37. e5 {[%clk 0:00:25]}  c5 {[%clk 0:00:08]} 38. b3 {[%clk 0:00:25]}  Kf7 {[%clk 0:00:08]} 39. Kf3 {[%clk 0:00:24]}  Kg6 {[%clk 0:00:08]} 40. Ke4 {[%clk 0:00:20]}  Kg5 {[%clk 0:00:07]} 41. Rh8 {[%clk 0:00:19]}  a5 {[%clk 0:00:06]} 42. Kd5 {[%clk 0:00:19]}  Kf5 {[%clk 0:00:05]} 43. Rh5+ {[%clk 0:00:18]}  Kg6 {[%clk 0:00:03]} 44. Kxe6 {[%clk 0:00:18]}  Kxh5 {[%clk 0:00:02]} 45. Kd5 {[%clk 0:00:18]} 1-0


[Site "https://www.chess.com"]